[Event "Masters Tournament (MTO)"]
[Site "Biel, Switzerland"]
[Date "2026.07.16"]
[Round "4.40"]
[White "Stefan, Iulia-Cristiana"]
[Black "Corbat, Philippe"]
[Result "1-0"]
[TimeControl "100+30+30sec/move"]
[WhiteTitle "-"]
[BlackTitle "-"]
[WhiteFideId "1273876"]
[BlackFideId "1304496"]
[WhiteElo "2053"]
[BlackElo "1893"]

1. d4 {[%clk 01:40:57]} d5 {[%clk 01:40:45]} {[%emt 00:00:16]} 2. Nf3 {[%clk
01:41:22]} {[%emt 00:00:06]} e6 {[%clk 01:41:02]} {[%emt 00:00:14]} 3. c4
{[%clk 01:41:40]} {[%emt 00:00:11]} Nf6 {[%clk 01:41:08]} {[%emt 00:00:23]} 4.
Bg5 {[%clk 01:42:02]} {[%emt 00:00:07]} Bb4+ {[%clk 01:39:26]} {[%emt
00:02:13]} 5. Nbd2 {[%clk 01:42:21]} {[%emt 00:00:11]} dxc4 {[%clk 01:38:46]}
{[%emt 00:01:10]} 6. e3 {[%clk 01:42:10]} {[%emt 00:00:41]} b5 {[%clk
01:38:26]} {[%emt 00:00:50]} 7. a3 {[%clk 01:40:40]} {[%emt 00:02:01]} Bxd2+
{[%clk 01:37:17]} {[%emt 00:01:39]} 8. Qxd2 {[%clk 01:29:31]} {[%emt 00:11:39]}
Qd5 {[%clk 01:32:15]} {[%emt 00:05:31]} 9. Bf4 {[%clk 01:16:44]} {[%emt
00:13:17]} Nbd7 {[%clk 01:29:14]} {[%emt 00:03:31]} 10. a4 {[%clk 01:10:27]}
{[%emt 00:06:47]} c6 {[%clk 01:26:51]} {[%emt 00:02:53]} 11. Be2 {[%clk
01:06:43]} {[%emt 00:04:14]} O-O {[%clk 01:25:50]} {[%emt 00:01:32]} 12. Ng5
{[%clk 00:47:19]} {[%emt 00:19:53]} e5 {[%clk 01:16:21]} {[%emt 00:09:59]} 13.
dxe5 {[%clk 00:46:28]} {[%emt 00:01:22]} Qxd2+ {[%clk 01:15:10]} {[%emt
00:01:40]} 14. Kxd2 {[%clk 00:46:56]} {[%emt 00:00:02]} Nd5 {[%clk 01:12:26]}
{[%emt 00:03:13]} 15. axb5 {[%clk 00:42:46]} {[%emt 00:04:41]} cxb5 {[%clk
01:10:04]} {[%emt 00:02:53]} 16. e6 {[%clk 00:40:57]} {[%emt 00:02:18]} Nc5
{[%clk 01:01:57]} {[%emt 00:08:36]} 17. exf7+ {[%clk 00:32:58]} {[%emt
00:08:30]} Kh8 {[%clk 00:55:13]} {[%emt 00:07:13]} 18. Bd6 {[%clk 00:26:24]}
{[%emt 00:07:04]} Nb3+ {[%clk 00:52:19]} {[%emt 00:03:24]} 19. Ke1 {[%clk
00:25:13]} {[%emt 00:01:42]} Nxa1 {[%clk 00:39:11]} {[%emt 00:13:39]} 20. Bxf8
{[%clk 00:25:32]} {[%emt 00:00:11]} Bd7 {[%clk 00:39:20]} {[%emt 00:00:19]} 21.
Bd6 {[%clk 00:24:15]} {[%emt 00:01:48]} h6 {[%clk 00:38:57]} {[%emt 00:00:53]}
22. Bf3 {[%clk 00:22:25]} {[%emt 00:02:20]} 1-0

[Event "Masters Tournament (MTO)"]
[Site "Biel, Switzerland"]
[Date "2026.07.16"]
[Round "4.41"]
[White "Yang, Sung-Jui"]
[Black "Petry, Martin"]
[Result "1-0"]
[TimeControl "100+30+30sec/move"]
[WhiteTitle "-"]
[BlackTitle "-"]
[WhiteFideId "16301048"]
[BlackFideId "1352318"]
[WhiteElo "1935"]
[BlackElo "1999"]

1. d4 {[%clk 01:31:55]} {[%emt 00:09:02]} Nf6 {[%clk 01:40:50]} {[%emt
00:00:10]} 2. Nf3 {[%clk 01:32:15]} {[%emt 00:00:11]} g6 {[%clk 01:41:11]}
{[%emt 00:00:09]} 3. c4 {[%clk 01:32:37]} {[%emt 00:00:07]} Bg7 {[%clk
01:41:32]} {[%emt 00:00:10]} 4. Nc3 {[%clk 01:32:58]} {[%emt 00:00:09]} O-O
{[%clk 01:41:46]} {[%emt 00:00:16]} 5. e4 {[%clk 01:33:22]} {[%emt 00:00:06]}
d6 {[%clk 01:42:13]} {[%emt 00:00:04]} 6. h3 {[%clk 01:33:44]} {[%emt
00:00:08]} e5 {[%clk 01:41:46]} {[%emt 00:00:56]} 7. d5 {[%clk 01:34:00]}
{[%emt 00:00:14]} a5 {[%clk 01:41:48]} {[%emt 00:00:29]} 8. g4 {[%clk
01:34:11]} {[%emt 00:00:18]} Na6 {[%clk 01:41:14]} {[%emt 00:01:04]} 9. Be3
{[%clk 01:34:34]} {[%emt 00:00:07]} Nc5 {[%clk 01:38:30]} {[%emt 00:03:14]} 10.
Nd2 {[%clk 01:34:50]} {[%emt 00:00:14]} Bd7 {[%clk 01:31:53]} {[%emt 00:07:07]}
11. Be2 {[%clk 01:34:43]} {[%emt 00:00:37]} a4 {[%clk 01:25:53]} {[%emt
00:06:30]} 12. g5 {[%clk 01:26:29]} {[%emt 00:08:44]} Ne8 {[%clk 01:23:07]}
{[%emt 00:03:16]} 13. a3 {[%clk 01:26:17]} {[%emt 00:00:42]} f5 {[%clk
01:11:31]} {[%emt 00:12:06]} 14. h4 {[%clk 01:23:42]} {[%emt 00:03:04]} f4
{[%clk 01:05:48]} {[%emt 00:06:14]} 15. Bxc5 {[%clk 01:23:47]} {[%emt
00:00:25]} dxc5 {[%clk 01:06:08]} {[%emt 00:00:09]} 16. Bg4 {[%clk 01:23:35]}
{[%emt 00:00:43]} Qc8 {[%clk 00:57:34]} {[%emt 00:09:04]} 17. Bxd7 {[%clk
01:23:27]} {[%emt 00:00:38]} Qxd7 {[%clk 00:57:57]} {[%emt 00:00:07]} 18. Qf3
{[%clk 01:22:07]} {[%emt 00:01:49]} Nd6 {[%clk 00:54:41]} {[%emt 00:03:47]} 19.
h5 {[%clk 01:00:14]} {[%emt 00:22:23]} Rfd8 {[%clk 00:37:47]} {[%emt 00:17:24]}
20. Rh4 {[%clk 00:26:30]} {[%emt 00:34:14]} Nf7 {[%clk 00:30:49]} {[%emt
00:07:27]} 21. Qg2 {[%clk 00:26:37]} {[%emt 00:00:22]} c6 {[%clk 00:28:20]}
{[%emt 00:03:01]} 22. Nf3 {[%clk 00:20:12]} {[%emt 00:06:55]} b5 {[%clk
00:25:31]} {[%emt 00:03:19]} 23. dxc6 {[%clk 00:18:38]} {[%emt 00:02:05]} Qxc6
{[%clk 00:22:09]} {[%emt 00:03:51]} 24. cxb5 {[%clk 00:19:01]} {[%emt
00:00:07]} Qb6 {[%clk 00:21:15]} {[%emt 00:01:24]} 25. hxg6 {[%clk 00:15:12]}
{[%emt 00:04:19]} hxg6 {[%clk 00:20:55]} {[%emt 00:00:49]} 26. Qg4 {[%clk
00:15:25]} {[%emt 00:00:17]} Rd3 {[%clk 00:17:25]} {[%emt 00:04:00]} 27. Rd1
{[%clk 00:14:02]} {[%emt 00:01:54]} Rxd1+ {[%clk 00:12:08]} {[%emt 00:05:47]}
28. Kxd1 {[%clk 00:14:24]} {[%emt 00:00:07]} Rd8+ {[%clk 00:09:37]} {[%emt
00:03:01]} 29. Ke2 {[%clk 00:11:40]} {[%emt 00:03:15]} Qb7 {[%clk 00:07:46]}
{[%emt 00:02:21]} 30. Rh1 {[%clk 00:11:18]} {[%emt 00:00:46]} Rd4 {[%clk
00:05:25]} {[%emt 00:02:57]} 31. Nd2 {[%clk 00:10:21]} {[%emt 00:01:28]} Qe7
{[%clk 00:03:49]} {[%emt 00:02:05]} 32. Nd5 {[%clk 00:07:09]} {[%emt 00:03:42]}
Qd8 {[%clk 00:03:46]} {[%emt 00:00:32]} 33. Qe6 {[%clk 00:04:15]} {[%emt
00:03:25]} Qxg5 {[%clk 00:02:08]} {[%emt 00:02:08]} 34. Ne7+ {[%clk 00:03:49]}
{[%emt 00:00:56]} Kf8 {[%clk 00:02:08]} {[%emt 00:00:29]} 35. Nxg6+ {[%clk
00:04:04]} {[%emt 00:00:16]} 1-0

[Event "Masters Tournament (MTO)"]
[Site "Biel, Switzerland"]
[Date "2026.07.16"]
[Round "4.42"]
[White "Hajduk, Tomasz"]
[Black "Malli, Shiivesh Sunil"]
[Result "1/2-1/2"]
[TimeControl "100+30+30sec/move"]
[WhiteTitle "-"]
[BlackTitle "-"]
[WhiteFideId "21811415"]
[BlackFideId "1340409"]
[WhiteElo "1921"]
[BlackElo "1994"]

1. e4 {[%clk 01:40:57]} c5 {[%clk 01:40:48]} {[%emt 00:00:14]} 2. Nf3 {[%clk
01:41:24]} {[%emt 00:00:02]} Nc6 {[%clk 01:41:13]} {[%emt 00:00:06]} 3. d4
{[%clk 01:41:50]} {[%emt 00:00:03]} cxd4 {[%clk 01:41:38]} {[%emt 00:00:04]} 4.
Nxd4 {[%clk 01:42:17]} {[%emt 00:00:03]} g6 {[%clk 01:42:00]} {[%emt 00:00:09]}
5. Nc3 {[%clk 01:42:40]} {[%emt 00:00:08]} Bg7 {[%clk 01:42:21]} {[%emt
00:00:08]} 6. Be3 {[%clk 01:43:04]} {[%emt 00:00:06]} d6 {[%clk 01:42:14]}
{[%emt 00:00:37]} 7. Bc4 {[%clk 01:42:14]} {[%emt 00:01:20]} Nf6 {[%clk
01:42:26]} {[%emt 00:00:17]} 8. f3 {[%clk 01:42:31]} {[%emt 00:00:14]} Bd7
{[%clk 01:41:07]} {[%emt 00:01:48]} 9. Bb3 {[%clk 01:42:47]} {[%emt 00:00:15]}
Na5 {[%clk 01:33:57]} {[%emt 00:07:40]} 10. Qd2 {[%clk 01:42:44]} {[%emt
00:00:33]} Nxb3 {[%clk 01:34:05]} {[%emt 00:00:22]} 11. Nxb3 {[%clk 01:42:50]}
{[%emt 00:00:24]} h5 {[%clk 01:33:54]} {[%emt 00:00:40]} 12. h4 {[%clk
01:42:04]} {[%emt 00:01:16]} b5 {[%clk 01:33:26]} {[%emt 00:00:59]} 13. O-O-O
{[%clk 01:37:45]} {[%emt 00:04:48]} a5 {[%clk 01:31:08]} {[%emt 00:02:49]} 14.
e5 {[%clk 01:19:40]} {[%emt 00:18:35]} dxe5 {[%clk 01:26:42]} {[%emt 00:04:56]}
15. Nd5 {[%clk 01:11:34]} {[%emt 00:08:36]} a4 {[%clk 01:05:53]} {[%emt
00:21:19]} 16. Nc5 {[%clk 00:44:20]} {[%emt 00:27:43]} Bc6 {[%clk 01:04:24]}
{[%emt 00:01:59]} 17. Nxf6+ {[%clk 00:33:24]} {[%emt 00:11:27]} Bxf6 {[%clk
01:04:11]} {[%emt 00:00:42]} 18. Qf2 {[%clk 00:32:46]} {[%emt 00:01:09]} Qc8
{[%clk 01:04:05]} {[%emt 00:00:35]} 19. Kb1 {[%clk 00:29:06]} {[%emt 00:04:10]}
b4 {[%clk 00:43:50]} {[%emt 00:20:45]} 20. Rhe1 {[%clk 00:20:07]} {[%emt
00:09:30]} Qf5 {[%clk 00:39:18]} {[%emt 00:05:02]} 21. Bd2 {[%clk 00:17:41]}
{[%emt 00:02:57]} b3 {[%clk 00:28:40]} {[%emt 00:11:06]} 22. axb3 {[%clk
00:17:43]} {[%emt 00:00:28]} axb3 {[%clk 00:27:06]} {[%emt 00:02:05]} 23. Nxb3
{[%clk 00:18:01]} {[%emt 00:00:12]} Ba4 {[%clk 00:26:15]} {[%emt 00:01:20]} 24.
Re4 {[%clk 00:13:52]} {[%emt 00:04:40]} Bxb3 {[%clk 00:25:22]} {[%emt
00:01:22]} 25. cxb3 {[%clk 00:14:16]} {[%emt 00:00:07]} O-O {[%clk 00:20:55]}
{[%emt 00:04:56]} 26. Bc3 {[%clk 00:14:33]} {[%emt 00:00:14]} Rfb8 {[%clk
00:18:22]} {[%emt 00:03:01]} 27. b4 {[%clk 00:14:58]} {[%emt 00:00:07]} Qe6
{[%clk 00:18:13]} {[%emt 00:00:38]} 28. Kc2 {[%clk 00:13:55]} {[%emt 00:01:34]}
Qa2 {[%clk 00:17:37]} {[%emt 00:01:05]} 29. Rd3 {[%clk 00:09:22]} {[%emt
00:05:04]} Rd8 {[%clk 00:12:48]} {[%emt 00:05:17]} 30. Qe3 {[%clk 00:07:44]}
{[%emt 00:02:09]} e6 {[%clk 00:11:28]} {[%emt 00:01:49]} 31. Rxd8+ {[%clk
00:03:31]} {[%emt 00:04:44]} Rxd8 {[%clk 00:11:41]} 32. b5 {[%clk 00:03:47]}
{[%emt 00:00:33]} Qd5 {[%clk 00:10:13]} {[%emt 00:01:57]} 33. Qe2 {[%clk
00:03:58]} {[%emt 00:00:19]} Qc5 {[%clk 00:07:22]} {[%emt 00:03:19]} 34. g4
{[%clk 00:01:36]} {[%emt 00:02:53]} hxg4 {[%clk 00:04:25]} {[%emt 00:03:27]} 35.
fxg4 {[%emt 00:03:08]} Rd4 {[%clk 00:02:12]} 36. Qf2 {[%clk 00:00:34]} {[%emt
00:01:37]} Qc4 {[%clk 00:00:41]} {[%emt 00:02:01]} 37. Rxd4 {[%clk 00:00:33]}
{[%emt 00:00:31]} exd4 {[%clk 00:01:01]} {[%emt 00:00:10]} 38. Qxf6 {[%clk
00:00:47]} {[%emt 00:00:16]} dxc3 {[%clk 00:00:44]} {[%emt 00:00:47]} 39. bxc3
{[%clk 00:00:42]} {[%emt 00:00:36]} Qxb5 {[%clk 00:00:56]} {[%emt 00:00:17]} 40.
Qd4 {[%clk 00:00:50]} {[%emt 00:00:21]} e5 {[%clk 00:00:43]} {[%emt 00:00:44]}
41. Qe4 {[%clk 00:28:04]} {[%emt 00:03:16]} Kg7 {[%clk 00:27:24]} {[%emt
00:03:47]} 42. h5 {[%clk 00:25:01]} {[%emt 00:03:35]} Qc5 {[%clk 00:23:27]}
{[%emt 00:04:26]} 43. c4 {[%clk 00:23:27]} {[%emt 00:02:04]} Qf2+ {[%clk
00:21:58]} {[%emt 00:01:59]} 44. Kc3 {[%clk 00:20:20]} {[%emt 00:03:38]} Qc5
{[%clk 00:22:01]} {[%emt 00:00:26]} 45. Qg2 {[%emt 00:04:48]} 1/2-1/2

[Event "Masters Tournament (MTO)"]
[Site "Biel, Switzerland"]
[Date "2026.07.16"]
[Round "4.43"]
[White "Di Candia, Roberto"]
[Black "Ruchat, Blaise"]
[Result "1-0"]
[TimeControl "100+30+30sec/move"]
[WhiteTitle "-"]
[BlackTitle "-"]
[WhiteFideId "856649"]
[BlackFideId "1328921"]
[WhiteElo "1988"]
[BlackElo "1912"]

1. c4 {[%clk 01:40:57]} Nf6 {[%clk 01:40:45]} {[%emt 00:00:16]} 2. Nc3 {[%clk
01:40:18]} {[%emt 00:01:10]} d5 {[%clk 01:39:50]} {[%emt 00:01:25]} 3. cxd5
{[%clk 01:39:57]} {[%emt 00:00:52]} Nxd5 {[%clk 01:40:09]} {[%emt 00:00:10]} 4.
Nf3 {[%clk 01:39:56]} {[%emt 00:00:30]} g6 {[%clk 01:36:57]} {[%emt 00:03:43]}
5. e4 {[%clk 01:39:56]} {[%emt 00:00:30]} Nxc3 {[%clk 01:36:47]} {[%emt
00:00:40]} 6. dxc3 {[%clk 01:40:21]} {[%emt 00:00:05]} Qxd1+ {[%clk 01:36:42]}
{[%emt 00:00:35]} 7. Kxd1 {[%clk 01:40:47]} {[%emt 00:00:03]} f6 {[%clk
01:37:04]} {[%emt 00:00:08]} 8. h4 {[%clk 01:41:03]} {[%emt 00:00:14]} Bg4
{[%clk 01:35:05]} {[%emt 00:02:29]} 9. Kc2 {[%clk 01:40:29]} {[%emt 00:01:04]}
e5 {[%clk 01:30:21]} {[%emt 00:05:14]} 10. Be3 {[%clk 01:38:47]} {[%emt
00:02:11]} Nd7 {[%clk 01:19:35]} {[%emt 00:11:16]} 11. Nd2 {[%clk 01:31:19]}
{[%emt 00:07:58]} Bc5 {[%clk 01:16:46]} {[%emt 00:03:19]} 12. Bxc5 {[%clk
01:30:47]} {[%emt 00:01:02]} Nxc5 {[%clk 01:17:13]} {[%emt 00:00:03]} 13. b4
{[%clk 01:30:56]} {[%emt 00:00:22]} Nd7 {[%clk 01:14:13]} {[%emt 00:03:30]} 14.
h5 {[%clk 01:25:51]} {[%emt 00:05:35]} Ke7 {[%clk 01:09:47]} {[%emt 00:04:56]}
15. a4 {[%clk 01:23:03]} {[%emt 00:03:18]} g5 {[%clk 00:52:53]} {[%emt
00:17:23]} 16. a5 {[%clk 01:20:08]} {[%emt 00:03:25]} a6 {[%clk 00:51:45]}
{[%emt 00:01:38]} 17. Bc4 {[%clk 01:18:27]} {[%emt 00:02:10]} Nf8 {[%clk
00:49:14]} {[%emt 00:03:02]} 18. Bd5 {[%clk 01:06:23]} {[%emt 00:12:35]} c6
{[%clk 00:46:55]} {[%emt 00:02:48]} 19. Bc4 {[%clk 01:05:27]} {[%emt 00:01:26]}
Rd8 {[%clk 00:47:05]} {[%emt 00:00:20]} 20. Nf1 {[%clk 01:04:56]} {[%emt
00:01:01]} Be6 {[%clk 00:42:20]} {[%emt 00:05:16]} 21. Ne3 {[%clk 01:04:33]}
{[%emt 00:00:52]} Bxc4 {[%clk 00:41:10]} {[%emt 00:01:41]} 22. Nxc4 {[%clk
01:05:01]} {[%emt 00:00:01]} Ne6 {[%clk 00:41:16]} {[%emt 00:00:24]} 23. g3
{[%clk 01:02:37]} {[%emt 00:02:54]} Nc7 {[%clk 00:30:21]} {[%emt 00:11:25]} 24.
Rad1 {[%clk 00:59:16]} {[%emt 00:03:51]} Nb5 {[%clk 00:30:06]} {[%emt
00:00:45]} 25. f3 {[%clk 00:57:40]} {[%emt 00:02:06]} Nd6 {[%clk 00:28:05]}
{[%emt 00:02:31]} 26. Nxd6 {[%clk 00:47:12]} {[%emt 00:10:59]} Rxd6 {[%clk
00:28:33]} {[%emt 00:00:02]} 27. Rxd6 {[%clk 00:47:34]} {[%emt 00:00:08]} Kxd6
{[%clk 00:28:55]} {[%emt 00:00:08]} 28. Rd1+ {[%clk 00:47:58]} {[%emt
00:00:06]} Ke7 {[%clk 00:28:49]} {[%emt 00:00:36]} 29. g4 {[%clk 00:45:43]}
{[%emt 00:02:45]} Rc8 {[%clk 00:26:10]} {[%emt 00:03:09]} 30. c4 {[%clk
00:39:56]} {[%emt 00:06:17]} Rc7 {[%clk 00:22:15]} {[%emt 00:04:25]} 31. Kc3
{[%clk 00:37:05]} {[%emt 00:03:22]} Rd7 {[%clk 00:21:19]} {[%emt 00:01:26]} 32.
Rb1 {[%clk 00:37:11]} {[%emt 00:00:24]} Rc7 {[%clk 00:19:42]} {[%emt 00:02:06]}
33. Rb3 {[%clk 00:36:44]} {[%emt 00:00:57]} Kd6 {[%clk 00:14:46]} {[%emt
00:05:26]} 34. Kb2 {[%clk 00:35:02]} {[%emt 00:02:12]} Rd7 {[%clk 00:14:25]}
{[%emt 00:00:51]} 35. b5 {[%clk 00:24:55]} {[%emt 00:10:37]} axb5 {[%clk
00:14:08]} {[%emt 00:00:47]} 36. cxb5 {[%clk 00:25:16]} {[%emt 00:00:09]} Kc5
{[%clk 00:14:02]} {[%emt 00:00:35]} 37. bxc6 {[%clk 00:24:32]} {[%emt
00:01:15]} bxc6 {[%clk 00:14:12]} {[%emt 00:00:20]} 38. a6 {[%clk 00:23:48]}
{[%emt 00:01:14]} Ra7 {[%clk 00:12:33]} {[%emt 00:02:09]} 39. Rb7 {[%clk
00:23:51]} {[%emt 00:00:28]} Rxa6 {[%clk 00:12:53]} {[%emt 00:00:10]} 40. Rxh7
{[%clk 00:24:14]} {[%emt 00:00:06]} Kd6 {[%clk 00:01:37]} {[%emt 00:11:45]} 41.
Rb7 {[%clk 00:22:35]} {[%emt 00:02:09]} Ra8 {[%clk 00:29:27]} {[%emt 00:02:41]}
42. h6 {[%clk 00:50:54]} {[%emt 00:02:11]} Rh8 {[%clk 00:24:46]} {[%emt
00:05:11]} 43. h7 {[%clk 00:51:19]} {[%emt 00:00:06]} Rc8 {[%clk 00:20:10]}
{[%emt 00:05:06]} 44. Rf7 {[%clk 00:50:15]} {[%emt 00:01:32]} Ke6 {[%clk
00:20:32]} {[%emt 00:00:09]} 45. Rc7 {[%clk 00:50:04]} {[%emt 00:00:42]} Rb8+
{[%clk 00:19:25]} {[%emt 00:01:37]} 46. Kc3 {[%clk 00:50:07]} {[%emt 00:00:26]}
Kd6 {[%clk 00:19:48]} {[%emt 00:00:06]} 47. Rg7 {[%clk 00:50:28]} {[%emt
00:00:10]} Rh8 {[%clk 00:20:13]} {[%emt 00:00:05]} 48. Kc4 {[%clk 00:50:35]}
{[%emt 00:00:23]} c5 {[%clk 00:17:23]} {[%emt 00:03:20]} 49. Ra7 {[%clk
00:50:20]} {[%emt 00:00:44]} Rc8 {[%clk 00:15:29]} {[%emt 00:02:24]} 50. Ra6+
{[%clk 00:48:50]} {[%emt 00:02:01]} Ke7 {[%clk 00:15:35]} {[%emt 00:00:24]} 51.
Ra7+ {[%clk 00:48:47]} {[%emt 00:00:33]} Kd6 {[%clk 00:15:21]} {[%emt
00:00:43]} 52. Rf7 {[%clk 00:49:11]} {[%emt 00:00:06]} Ke6 {[%clk 00:15:13]}
{[%emt 00:00:40]} 53. Rg7 {[%clk 00:49:38]} {[%emt 00:00:03]} Rh8 {[%clk
00:15:17]} {[%emt 00:00:26]} 54. Kxc5 {[%clk 00:50:04]} {[%emt 00:00:04]} Rc8+
{[%clk 00:06:55]} {[%emt 00:08:52]} 55. Kb6 {[%clk 00:50:21]} {[%emt 00:00:12]}
Rb8+ {[%clk 00:07:14]} {[%emt 00:00:13]} 56. Rb7 {[%clk 00:49:00]} {[%emt
00:01:51]} Rc8 {[%clk 00:06:45]} {[%emt 00:00:59]} 57. Rc7 {[%clk 00:49:01]}
{[%emt 00:00:30]} Rb8+ {[%clk 00:06:46]} {[%emt 00:00:29]} 58. Ka7 {[%clk
00:49:16]} {[%emt 00:00:14]} Rh8 {[%clk 00:05:47]} {[%emt 00:01:29]} 59. Kb7
{[%clk 00:49:18]} {[%emt 00:00:28]} Kd6 {[%clk 00:05:56]} {[%emt 00:00:20]} 60.
Rc6+ {[%clk 00:48:28]} {[%emt 00:01:21]} Ke7 {[%clk 00:06:11]} {[%emt
00:00:15]} 61. Rc8 {[%clk 00:48:46]} {[%emt 00:00:13]} 1-0

[Event "Masters Tournament (MTO)"]
[Site "Biel, Switzerland"]
[Date "2026.07.16"]
[Round "4.44"]
[White "Wiesmann, Dominique"]
[Black "Hornung, Hans"]
[Result "1-0"]
[TimeControl "100+30+30sec/move"]
[WhiteTitle "-"]
[BlackTitle "-"]
[WhiteFideId "1308262"]
[BlackFideId "4615140"]
[WhiteElo "1978"]
[BlackElo "1924"]

1. c4 {[%clk 01:40:56]} {[%emt 00:00:03]} Nf6 {[%clk 01:37:35]} {[%emt
00:03:24]} 2. g3 {[%clk 01:41:15]} {[%emt 00:00:12]} e5 {[%clk 01:36:18]}
{[%emt 00:01:46]} 3. Bg2 {[%clk 01:40:58]} {[%emt 00:00:47]} Bc5 {[%clk
01:36:01]} {[%emt 00:00:48]} 4. Nc3 {[%clk 01:40:15]} {[%emt 00:01:12]} c6
{[%clk 01:35:07]} {[%emt 00:01:18]} 5. Nf3 {[%clk 01:36:18]} {[%emt 00:04:33]}
e4 {[%clk 01:34:59]} {[%emt 00:00:37]} 6. Nh4 {[%clk 01:36:33]} {[%emt
00:00:15]} d5 {[%clk 01:34:42]} {[%emt 00:00:48]} 7. d3 {[%clk 01:36:35]}
{[%emt 00:00:28]} dxc4 {[%clk 01:20:28]} {[%emt 00:14:43]} 8. dxe4 {[%clk
01:35:27]} {[%emt 00:01:39]} Qxd1+ {[%emt 00:00:49]} 9. Nxd1 {[%emt 00:00:10]}
Na6 {[%clk 01:12:37]} {[%emt 00:07:22]} 10. h3 {[%clk 01:26:42]} {[%emt
00:09:14]} O-O {[%clk 00:57:58]} {[%emt 00:15:10]} 11. Bg5 {[%clk 01:23:17]}
{[%emt 00:03:55]} Bb4+ {[%clk 00:51:05]} {[%emt 00:07:23]} 12. Nc3 {[%clk
01:22:11]} {[%emt 00:01:36]} Nc5 {[%clk 00:50:17]} {[%emt 00:01:18]} 13. Bxf6
{[%clk 01:21:12]} {[%emt 00:01:28]} gxf6 {[%clk 00:50:36]} {[%emt 00:00:11]} 14.
O-O {[%clk 01:15:30]} {[%emt 00:06:12]} Bxc3 {[%clk 00:47:56]} {[%emt
00:03:12]} 15. bxc3 {[%clk 01:15:49]} {[%emt 00:00:11]} Be6 {[%clk 00:47:57]}
{[%emt 00:00:29]} 16. Rac1 {[%clk 01:07:12]} {[%emt 00:09:07]} Rad8 {[%clk
00:36:29]} {[%emt 00:11:59]} 17. Rc2 {[%clk 01:06:38]} {[%emt 00:01:03]} Rfe8
{[%clk 00:34:11]} {[%emt 00:02:48]} 18. Rb1 {[%clk 01:00:20]} {[%emt 00:06:47]}
Bc8 {[%clk 00:33:25]} {[%emt 00:01:17]} 19. f3 {[%clk 00:58:43]} {[%emt
00:02:08]} b6 {[%clk 00:31:54]} {[%emt 00:02:00]} 20. Kf2 {[%clk 00:58:30]}
{[%emt 00:00:43]} Ba6 {[%clk 00:31:27]} {[%emt 00:00:57]} 21. Nf5 {[%clk
00:57:29]} {[%emt 00:01:31]} Bb5 {[%clk 00:28:51]} {[%emt 00:03:07]} 22. Ke1
{[%clk 00:51:06]} {[%emt 00:06:52]} Ba4 {[%clk 00:28:49]} {[%emt 00:00:30]} 23.
Rd2 {[%clk 00:51:12]} {[%emt 00:00:26]} Rxd2 {[%clk 00:24:11]} {[%emt
00:05:09]} 24. Kxd2 {[%clk 00:51:36]} {[%emt 00:00:05]} Rd8+ {[%clk 00:24:07]}
{[%emt 00:00:34]} 25. Ke1 {[%clk 00:51:03]} {[%emt 00:01:03]} Kf8 {[%clk
00:22:17]} {[%emt 00:02:19]} 26. Ne3 {[%clk 00:49:44]} {[%emt 00:01:49]} b5
{[%clk 00:21:28]} {[%emt 00:01:20]} 27. Rb2 {[%clk 00:46:43]} {[%emt 00:03:31]}
Rd3 {[%clk 00:19:00]} {[%emt 00:02:58]} 28. exd3 {[%clk 00:36:36]} {[%emt
00:10:37]} Nxd3+ {[%clk 00:19:22]} {[%emt 00:00:08]} 29. Kd2 {[%clk 00:36:33]}
{[%emt 00:00:32]} Nxb2 {[%clk 00:19:43]} {[%emt 00:00:10]} 30. Bf1 {[%clk
00:36:14]} {[%emt 00:00:48]} a5 {[%clk 00:16:01]} {[%emt 00:04:12]} 31. Be2
{[%clk 00:33:57]} {[%emt 00:02:47]} c5 {[%clk 00:12:17]} {[%emt 00:04:15]} 32.
Kc1 {[%clk 00:25:20]} {[%emt 00:09:06]} Nd3+ {[%clk 00:12:35]} {[%emt
00:00:12]} 33. Bxd3 {[%clk 00:25:44]} {[%emt 00:00:07]} cxd3 {[%clk 00:12:54]}
{[%emt 00:00:11]} 34. Kd2 {[%clk 00:26:06]} {[%emt 00:00:07]} c4 {[%clk
00:11:11]} {[%emt 00:02:12]} 35. Nd5 {[%clk 00:24:38]} {[%emt 00:01:59]} Kg7
{[%clk 00:09:17]} {[%emt 00:02:25]} 36. a3 {[%clk 00:23:53]} {[%emt 00:01:15]}
Kg6 {[%clk 00:08:06]} {[%emt 00:01:38]} 37. f4 {[%clk 00:23:16]} {[%emt
00:01:09]} h6 {[%clk 00:07:26]} {[%emt 00:01:09]} 38. g4 {[%clk 00:22:33]}
{[%emt 00:01:14]} Bb3 {[%clk 00:06:03]} {[%emt 00:01:53]} 39. Ne7+ {[%clk
00:22:27]} {[%emt 00:00:36]} Kg7 {[%clk 00:06:02]} {[%emt 00:00:31]} 40. Nc6
{[%clk 00:22:28]} {[%emt 00:00:30]} b4 {[%clk 00:02:53]} {[%emt 00:03:39]} 41.
cxb4 {[%clk 00:21:31]} {[%emt 00:01:27]} axb4 {[%clk 00:03:14]} {[%emt
00:00:09]} 42. axb4 {[%clk 00:18:08]} {[%emt 00:03:53]} Ba4 {[%clk 00:23:44]}
{[%emt 00:10:00]} 43. Nd4 {[%clk 00:48:22]} {[%emt 00:00:16]} h5 {[%clk
00:23:12]} {[%emt 00:01:02]} 44. b5 {[%clk 00:48:02]} {[%emt 00:00:50]} hxg4
{[%clk 00:23:17]} {[%emt 00:00:24]} 45. hxg4 {[%clk 00:48:10]} {[%emt
00:00:23]} 1-0